fUSD/lending_fUSD_20240615
["ID","MTS","AMOUNT","RATE_DAILY","PERIOD"]
[329543750,1718424686367,-492.5,0.00023013,3]
[329543751,1718424686381,-500.0,0.00023013,3]
[329543752,1718424686396,-2729.78,0.00023013,3]
[329543753,1718424686409,-719.06,0.00023013,3]
[329543754,1718424686425,-500.0,0.00023013,3]
[329543755,1718424686449,-500.0,0.00023013,3]
[329543756,1718424686460,-500.0,0.00023013,3]
[329543757,1718424686472,-500.0,0.00023013,3]
[329543758,1718424686485,-513.77929842,0.00023013,3]
[329543759,1718424686498,-500.0,0.00023013,3]
[329543760,1718424686510,-199.31509225,0.00023013,3]
[329543761,1718424686521,-500.0,0.00023013,3]
[329543762,1718424686537,-500.0,0.00023013,3]
[329543763,1718424686551,-500.0,0.00023013,3]
[329543764,1718424686580,-840.6,0.00023013,3]
[329543765,1718424686612,-500.0,0.00023013,3]
[329543766,1718424686646,-505.29228638,0.00023013,3]
[329543767,1718424686671,-319.1008653,0.00023013,3]
[329543768,1718424686686,-500.0,0.00023013,3]
[329543769,1718424686699,-500.0,0.00023013,3]
[329543770,1718424686724,-500.0,0.00023013,3]
[329543771,1718424686742,-500.0,0.00023013,3]
[329543772,1718424686757,-500.0,0.00023013,3]
[329543773,1718424686768,-500.0,0.00023013,3]
[329543774,1718424686778,-500.0,0.00023013,3]
[329543775,1718424686791,-605.50494613,0.00023013,3]
[329543776,1718424686802,-500.0,0.00023013,3]
[329543777,1718424686813,-500.0,0.00023013,3]
[329543778,1718424686824,-500.0,0.00023013,3]
[329543779,1718424686852,-500.0,0.00023013,3]
[329543780,1718424686863,-500.0,0.00023013,3]
[329543781,1718424686874,-500.0,0.00023013,3]
[329543782,1718424686884,-671.66,0.00023013,3]
[329543783,1718424686894,-500.0,0.00023013,3]
[329543784,1718424686913,-550.10235514,0.00023013,3]
[329543785,1718424686941,-500.0,0.00023013,3]
[329543786,1718424686960,-500.0,0.00023013,3]
[329543787,1718424686992,-500.0,0.00023013,3]
[329543788,1718424687004,-500.0,0.00023013,3]
[329543789,1718424687017,-500.0,0.00023013,3]
[329543790,1718424687028,-500.0,0.00023013,3]
[329543791,1718424687042,-500.0,0.00023013,3]
[329543792,1718424687063,-500.0,0.00023013,3]
[329543793,1718424687077,-507.23313061,0.00023013,3]
[329543794,1718424687101,-500.0,0.00023013,3]
[329543795,1718424687120,-500.0,0.00023013,3]
[329543796,1718424687158,-500.0,0.00023013,3]
[329543797,1718424687173,-500.0,0.00023013,3]
[329543798,1718424687208,-500.0,0.00023013,3]
[329543799,1718424687240,-174.46051449,0.00023013,3]
[329543800,1718424687252,-500.0,0.00023013,3]
[329543801,1718424687270,-500.0,0.00023013,3]
[329543802,1718424687286,-500.0,0.00023013,3]
[329543803,1718424687305,-500.0,0.00023013,3]
[329543804,1718424687316,-500.0,0.00023013,3]
[329543805,1718424687326,-500.0,0.00023013,3]
[329543806,1718424687339,-500.0,0.00023013,3]
[329543807,1718424687356,-500.0,0.00023013,3]
[329543808,1718424687369,-500.0,0.00023013,3]
[329543809,1718424687401,-500.0,0.00023013,3]
[329543810,1718424687424,-500.0,0.00023013,3]
[329543811,1718424687438,-500.0,0.00023013,3]
[329543812,1718424687450,-500.0,0.00023013,3]
[329543813,1718424687492,-500.0,0.00023013,3]
[329543814,1718424687508,-500.0,0.00023013,3]
[329543815,1718424687539,-500.0,0.00023013,3]
[329543816,1718424687570,-314.83650167,0.00023013,3]
[329543817,1718424687604,-500.0,0.00023013,3]
[329543818,1718424687616,-500.0,0.00023013,3]
[329543819,1718424687629,-500.0,0.00023013,3]
[329543820,1718424687640,-500.0,0.00023013,3]
[329543821,1718424687652,-500.0,0.00023013,3]
[329543822,1718424687665,-500.0,0.00023013,3]
[329543823,1718424687678,-168.4677913,0.00023013,3]
[329543824,1718424687689,-500.0,0.00023013,3]
[329543825,1718424687708,-200.0,0.00023013,3]
[329543826,1718424687748,-500.0,0.00023013,3]
[329543827,1718424687761,-572.18962708,0.00023013,3]
[329543828,1718424687772,-500.0,0.00023013,3]
[329543829,1718424687782,-500.0,0.00023013,3]
[329543830,1718424687793,-544.26,0.00023013,3]
[329543831,1718424687922,-500.0,0.00023013,3]
[329543832,1718424687935,-500.0,0.00023013,3]
[329543833,1718424687947,-500.0,0.00023013,3]
[329543834,1718424687961,-500.0,0.00023013,3]
[329543835,1718424687974,-500.0,0.00023013,3]
[329543836,1718424687985,-500.0,0.00023013,3]
[329543837,1718424687997,-500.0,0.00023013,3]
[329543838,1718424688010,-500.0,0.00023013,3]
[329543839,1718424688029,-505.95807474,0.00023013,3]
[329543840,1718424688042,-500.0,0.00023013,3]
[329543841,1718424688056,-500.0,0.00023013,3]
[329543842,1718424688069,-500.0,0.00023013,3]
[329543843,1718424688085,-500.0,0.00023013,3]
[329543844,1718424688097,-500.0,0.00023013,3]
[329543845,1718424688111,-500.0,0.00023013,3]
[329543846,1718424688127,-500.0,0.00023013,3]
[329543847,1718424688144,-500.0,0.00023013,3]
[329543848,1718424688162,-500.0,0.00023013,3]
[329543849,1718424688178,-500.0,0.00023013,3]
[329543850,1718424688204,-500.0,0.00023013,3]
[329543851,1718424688217,-500.0,0.00023013,3]
[329543852,1718424688230,-526.55955766,0.00023013,3]
[329543853,1718424688243,-500.0,0.00023013,3]
[329543854,1718424688260,-500.0,0.00023013,3]
[329543855,1718424688276,-500.0,0.00023013,3]
[329543856,1718424688300,-500.0,0.00023013,3]
[329543857,1718424688314,-500.0,0.00023013,3]
[329543858,1718424688328,-500.0,0.00023013,3]
[329543859,1718424688340,-500.0,0.00023013,3]
[329543860,1718424688356,-528.74396932,0.00023013,3]
[329543861,1718424688369,-500.0,0.00023013,3]
[329543862,1718424688382,-500.0,0.00023013,3]
[329543863,1718424688396,-500.0,0.00023013,3]
[329543864,1718424688408,-500.0,0.00023013,3]
[329543865,1718424688420,-500.0,0.00023013,3]
[329543866,1718424688432,-500.0,0.00023013,3]
[329543867,1718424688446,-500.0,0.00023013,3]
[329543868,1718424688457,-634.44569031,0.00023013,3]
[329543869,1718424688474,-500.0,0.00023013,3]
[329543870,1718424688488,-500.0,0.00023013,3]
[329543871,1718424688507,-500.0,0.00023013,3]
[329543872,1718424688524,-854.95,0.00023013,3]
[329543873,1718424688542,-535.89,0.00023013,3]
[329543874,1718424688562,-305.98,0.00023013,3]
[329543875,1718424688580,-500.0,0.00023013,3]
[329543876,1718424688592,-1071.32,0.00023013,3]
[329543877,1718424688613,-500.0,0.00023013,3]
[329543878,1718424688629,-500.0,0.00023013,3]
[329543879,1718424688647,-500.0,0.00023013,3]
[329543880,1718424688676,-500.0,0.00023013,3]
[329543881,1718424688699,-500.0,0.00023013,3]
[329543882,1718424688712,-500.0,0.00023013,3]
[329543883,1718424688723,-500.0,0.00023013,3]
[329543884,1718424688736,-500.0,0.00023013,3]
[329543885,1718424688748,-271.14337449,0.00023013,3]
[329543886,1718424688761,-500.0,0.00023013,3]
[329543887,1718424688773,-500.0,0.00023013,3]
[329543888,1718424688787,-626.91,0.00023013,3]
[329543889,1718424688798,-500.0,0.00023013,3]
[329543890,1718424688809,-500.0,0.00023013,3]
[329543891,1718424688824,-500.0,0.00023013,3]
[329543892,1718424688836,-500.0,0.00023013,3]
[329543893,1718424688848,-500.0,0.00023013,3]
[329543894,1718424688862,-500.0,0.00023013,3]
[329543895,1718424688876,-500.0,0.00023013,3]
[329543896,1718424688890,-500.0,0.00023013,3]
[329543897,1718424688905,-500.0,0.00023013,3]
[329543898,1718424688917,-398.41633805,0.00023013,3]
[329543899,1718424688929,-500.0,0.00023013,3]
[329543900,1718424688943,-1469.74,0.00023013,3]
[329543901,1718424688965,-500.0,0.00023013,3]
[329543902,1718424688993,-500.0,0.00023013,3]
[329543903,1718424689041,-500.0,0.00023013,3]
[329543904,1718424689064,-500.0,0.00023013,3]
[329543905,1718424689079,-500.0,0.00023013,3]
[329543906,1718424689137,-602.07,0.00023013,3]
[329543907,1718424689152,-500.0,0.00023013,3]
[329543908,1718424689173,-500.0,0.00023013,3]
[329543909,1718424689195,-596.77,0.00023013,3]
[329543910,1718424689207,-500.0,0.00023013,3]
[329543911,1718424689233,-500.0,0.00023013,3]
[329543912,1718424689262,-500.0,0.00023013,3]
[329543913,1718424689288,-500.0,0.00023013,3]
[329543914,1718424689303,-500.0,0.00023013,3]
[329543915,1718424689318,-500.0,0.00023013,3]
[329543916,1718424689332,-249.94,0.00023013,3]
[329543917,1718424689362,-500.0,0.00023013,3]
[329543918,1718424689390,-549.91931165,0.00023013,3]
[329543919,1718424689414,-500.0,0.00023013,3]
[329543920,1718424689425,-500.0,0.00023013,3]
[329543921,1718424689435,-500.0,0.00023013,3]
[329543922,1718424689465,-500.0,0.00023013,3]
[329543923,1718424689477,-500.0,0.00023013,3]
[329543924,1718424689493,-1150.42,0.00023013,3]
[329543925,1718424689515,-401.11636458,0.00023013,3]
[329543926,1718424689529,-292.15,0.00023013,3]
[329543927,1718424689543,-500.0,0.00023013,3]
[329543928,1718424689559,-500.0,0.00023013,3]
[329543929,1718424689575,-219.26560714,0.00023105,2]
[329543930,1718424689591,-530.1,0.00023239,2]
[329543931,1718424689621,-550.69,0.00023286,3]
[329543932,1718424689635,-180.76997474,0.00023287,2]
[329543933,1718424689656,-1052.56590418,0.00023287,2]
[329543934,1718424689692,-500.0,0.00023287,3]
[329543935,1718424689709,-500.0,0.00023287,3]
[329543936,1718424689729,-500.0,0.00023287,3]
[329543937,1718424689749,-500.0,0.00023287,3]
[329543938,1718424689774,-500.0,0.00023287,3]
[329543939,1718424689791,-500.0,0.00023287,3]
[329543940,1718424689807,-500.0,0.00023287,3]
[329543941,1718424689825,-529.88251672,0.00023287,3]
[329543942,1718424689844,-500.0,0.00023287,3]
[329543943,1718424689862,-500.0,0.00023287,3]
[329543944,1718424689883,-500.0,0.00023287,3]
[329543945,1718424689903,-500.0,0.00023287,3]
[329543946,1718424689924,-500.0,0.00023287,3]
[329543947,1718424689946,-500.0,0.00023287,3]
[329543948,1718424689968,-500.0,0.00023287,3]
[329543949,1718424689989,-500.0,0.00023287,3]
[329543950,1718424690004,-500.0,0.00023287,3]
[329543951,1718424690031,-500.0,0.00023287,3]
[329543952,1718424690066,-500.0,0.00023287,3]
[329543953,1718424690085,-500.0,0.00023287,3]
[329543954,1718424690103,-500.0,0.00023287,3]
[329543955,1718424690118,-500.0,0.00023287,3]
[329543956,1718424690132,-500.0,0.00023287,3]
[329543957,1718424690168,-500.0,0.00023287,3]
[329543958,1718424690183,-500.0,0.00023287,3]
[329543959,1718424690204,-506.9350908,0.00023287,3]
[329543960,1718424690219,-500.0,0.00023287,3]
[329543961,1718424690236,-500.0,0.00023287,3]
[329543962,1718424690269,-500.0,0.00023287,3]
[329543963,1718424690285,-500.0,0.00023287,3]
[329543964,1718424690304,-500.0,0.00023287,3]
[329543965,1718424690322,-488.69969319,0.00023287,3]
[329543966,1718424690338,-510.54567422,0.00023287,3]
[329543967,1718424690354,-500.0,0.00023287,3]
[329543968,1718424690370,-500.0,0.00023287,3]
[329543969,1718424690386,-500.0,0.00023287,3]
[329543970,1718424690401,-493.80012449,0.00023287,3]
[329543971,1718424690417,-259.39384974,0.00023287,3]
[329543972,1718424690436,-500.0,0.00023287,3]
[329543973,1718424690452,-500.0,0.00023287,3]
[329543974,1718424690470,-500.0,0.00023287,3]
[329543975,1718424690486,-500.0,0.00023287,3]
[329543976,1718424690521,-500.0,0.00023287,3]
[329543977,1718424690555,-500.0,0.00023287,3]
[329543978,1718424690574,-500.0,0.00023287,3]
[329543979,1718424690602,-500.0,0.00023287,3]
[329543980,1718424690617,-500.0,0.00023287,3]
[329543981,1718424690636,-500.0,0.00023287,3]
[329543982,1718424690656,-500.0,0.00023287,3]
[329543983,1718424690673,-500.0,0.00023287,3]
[329543984,1718424690694,-535.15976427,0.00023287,3]
[329543985,1718424690712,-500.0,0.00023287,3]
[329543986,1718424690727,-670.35,0.00023287,3]
[329543987,1718424690744,-500.0,0.00023287,3]
[329543988,1718424690762,-515.09,0.00023287,3]
[329543989,1718424690777,-500.0,0.00023287,3]
[329543990,1718424690804,-500.0,0.00023287,3]
[329543991,1718424690834,-500.0,0.00023287,3]
[329543992,1718424690854,-500.0,0.00023287,3]
[329543993,1718424690872,-500.0,0.00023287,3]
[329543994,1718424690905,-530.05724297,0.00023287,3]
[329543995,1718424690926,-730.32,0.00023287,3]
[329543996,1718424690945,-500.0,0.00023287,3]
[329543997,1718424690985,-500.0,0.00023287,3]
[329543998,1718424691006,-500.0,0.00023287,3]
[329543999,1718424691018,-500.0,0.00023287,3]
[329544000,1718424691033,-500.0,0.00023287,3]
[329544001,1718424691046,-500.0,0.00023287,3]
[329544002,1718424691080,-500.0,0.00023287,3]
[329544003,1718424691092,-500.0,0.00023287,3]
[329544004,1718424691104,-500.0,0.00023287,3]
[329544005,1718424691118,-500.0,0.00023287,3]
[329544006,1718424691148,-500.0,0.00023287,3]
[329544007,1718424691181,-500.0,0.00023287,3]
[329544008,1718424691216,-500.0,0.00023287,3]
[329544009,1718424691230,-665.53,0.00023287,3]
[329544010,1718424691242,-510.10403084,0.00023287,3]
[329544011,1718424691269,-500.0,0.00023287,3]
[329544012,1718424691283,-500.0,0.00023287,3]
[329544013,1718424691306,-509.47,0.00023287,3]
[329544014,1718424691318,-500.0,0.00023287,3]
[329544015,1718424691332,-500.0,0.00023287,3]
[329544016,1718424691348,-500.0,0.00023287,3]
[329544017,1718424691367,-500.0,0.00023287,3]
[329544018,1718424691385,-500.0,0.00023287,3]
[329544019,1718424691414,-500.0,0.00023287,3]
[329544020,1718424691429,-500.0,0.00023287,3]
[329544021,1718424691441,-500.0,0.00023287,3]
[329544022,1718424691454,-500.0,0.00023287,3]
[329544023,1718424691469,-904.06,0.00023287,3]
[329544024,1718424691494,-500.0,0.00023287,3]
[329544025,1718424691551,-500.0,0.00023287,3]
[329544026,1718424691576,-500.0,0.00023287,3]
[329544027,1718424691595,-507.67572433,0.00023287,3]
[329544028,1718424691622,-500.0,0.00023287,3]
[329544029,1718424691635,-500.0,0.00023287,3]
[329544030,1718424691652,-500.0,0.00023287,3]
[329544031,1718424691667,-500.0,0.00023287,3]
[329544032,1718424691681,-500.0,0.00023287,3]
[329544033,1718424691705,-500.0,0.00023287,3]
[329544034,1718424691726,-500.0,0.00023287,3]
[329544035,1718424691739,-516.19979944,0.00023287,3]
[329544036,1718424692041,-500.0,0.00023287,3]
[329544037,1718424692064,-500.0,0.00023287,3]
[329544038,1718424692080,-261.29503687,0.00023287,3]
[329544039,1718424692092,-547.13,0.00023287,3]
[329544040,1718424692107,-500.0,0.00023287,3]
[329544041,1718424692122,-500.0,0.00023287,3]
[329544042,1718424692137,-507.53128403,0.00023287,3]
[329544043,1718424692157,-500.0,0.00023287,3]
[329544044,1718424692168,-500.0,0.00023287,3]
[329544045,1718424692186,-500.0,0.00023287,3]
[329544046,1718424692207,-500.0,0.00023287,3]
[329544047,1718424692220,-510.52418774,0.00023287,3]
[329544048,1718424692234,-1045.9,0.00023287,3]
[329544049,1718424692252,-500.0,0.00023287,3]
[329544050,1718424692266,-500.0,0.00023287,3]
[329544051,1718424692282,-505.71095868,0.00023287,3]
[329544052,1718424692299,-500.0,0.00023287,3]
[329544053,1718424692317,-511.56451864,0.00023287,3]
[329544054,1718424692340,-504.52251734,0.00023287,3]
[329544055,1718424692371,-500.0,0.00023287,3]
[329544056,1718424692391,-500.0,0.00023287,3]
[329544057,1718424692408,-500.0,0.00023287,3]
[329544058,1718424692431,-500.0,0.00023287,3]
[329544059,1718424692445,-1030.92,0.00023287,3]
[329544060,1718424692472,-500.0,0.00023287,3]
[329544061,1718424692487,-500.0,0.00023287,3]
[329544062,1718424692501,-500.0,0.00023287,3]
[329544063,1718424692515,-500.0,0.00023287,3]
[329544064,1718424692532,-500.0,0.00023287,3]
[329544065,1718424692569,-500.0,0.00023287,3]
[329544066,1718424692581,-373.84186402,0.00023287,3]
[329544067,1718424692605,-500.0,0.00023287,3]
[329544068,1718424692626,-500.0,0.00023287,3]
[329544069,1718424692657,-500.0,0.00023287,3]
[329544070,1718424692671,-500.0,0.00023287,3]
[329544071,1718424692686,-2729.78,0.00023287,3]
[329544072,1718424692703,-719.06,0.00023287,3]
[329544073,1718424692735,-500.0,0.00023287,3]
[329544074,1718424692750,-500.0,0.00023287,3]
[329544075,1718424692764,-156.4950316,0.00023287,3]
[329544076,1718424692775,-509.16539495,0.00023287,3]
[329544077,1718424692785,-500.0,0.00023287,3]
[329544078,1718424692795,-500.0,0.00023287,3]
[329544079,1718424692808,-500.0,0.00023287,3]
[329544080,1718424692821,-500.0,0.00023287,3]
[329544081,1718424692847,-840.6,0.00023287,3]
[329544082,1718424692863,-500.0,0.00023287,3]
[329544083,1718424692881,-500.0,0.00023287,3]
[329544084,1718424692895,-500.0,0.00023287,3]
[329544085,1718424692925,-530.60367542,0.00023287,3]
[329544086,1718424692944,-500.0,0.00023287,3]
[329544087,1718424692962,-552.93636237,0.00023287,3]
[329544088,1718424692980,-400.51,0.00023287,3]
[329544089,1718424693010,-500.0,0.00023287,3]
[329544090,1718424693021,-507.09779375,0.00023287,3]
[329544091,1718424693036,-500.0,0.00023287,3]
[329544092,1718424693051,-500.0,0.00023287,3]
[329544093,1718424693076,-500.0,0.00023287,3]
[329544094,1718424693095,-500.0,0.00023287,3]
[329544095,1718424693129,-500.0,0.00023287,3]
[329544096,1718424693165,-671.66,0.00023287,3]
[329544097,1718424693183,-500.0,0.00023287,3]
[329544098,1718424693209,-500.0,0.00023287,3]
[329544099,1718424693252,-622.23662878,0.00023287,3]
[329544100,1718424693272,-500.0,0.00023287,3]
[329544101,1718424693285,-500.0,0.00023287,3]
[329544102,1718424693305,-500.0,0.00023287,3]
[329544103,1718424693338,-500.0,0.00023287,3]
[329544104,1718424693362,-500.0,0.00023287,3]
[329544105,1718424693389,-450.0,0.00023287,3]
[329544106,1718424693417,-500.0,0.00023287,3]
[329544107,1718424693429,-500.0,0.00023287,3]
[329544108,1718424693443,-101.51584191,0.00023287,3]
[329544109,1718424693626,-397.15441751,0.00023287,3]
[329544110,1718424693679,-17.08032486,0.00023287,3]
[329544111,1718424693709,-500.0,0.00023287,3]
[329544112,1718424693736,-508.32708592,0.00023287,3]
[329544113,1718424693747,-500.0,0.00023287,3]
[329544114,1718424693762,-130.81758922,0.00023287,3]
[329544115,1718424693777,-369.18241078,0.00023287,3]
[329544116,1718424693791,-354.66758922,0.00023287,3]
[329544117,1718424693837,-145.33241078,0.00023287,3]
[329544118,1718424693868,-152.9204225,0.00023287,3]
[329544119,1718424693882,-370.81645672,0.00023287,3]
[329544125,1718424853855,616.69366987,0.000275,120]
[329544127,1718425005193,150.41,0.00024329,30]
[329544128,1718425250658,495.87,0.000273,60]
[329544129,1718425255922,-365.72100783,0.00011089,2]
[329544130,1718425255975,-1211.05144163,0.0001109,2]
[329544131,1718425256048,-278.93813685,0.0001109,2]
[329544132,1718425256080,-268.98603627,0.00011188,2]
[329544133,1718425256111,-1491.5398984,0.00011188,2]
[329544134,1718425256178,-667.39926507,0.00011189,2]
[329544135,1718425256214,-1000.0,0.0001119,2]
[329544136,1718425256248,-364.40324563,0.00011191,2]
[329544137,1718425256293,-162.62,0.00011195,2]
[329544138,1718425256332,-150.0,0.00012108,2]
[329544139,1718425256388,-273.58,0.0001221,2]
[329544140,1718425256447,-727.83,0.00013036,2]
[329544141,1718425256486,-826.09,0.00013036,2]
[329544142,1718425256532,-2211.84096832,0.00013291,2]
[329544143,1718425258367,-5804.17903168,0.00013291,2]
[329544144,1718425260218,719.12,0.00012776,2]
[329544145,1718425290533,-268.98603627,0.00013551,2]
[329544146,1718425290566,-1000.0,0.00013551,2]
[329544147,1718425290599,-363.82499423,0.00013551,2]
[329544148,1718425290656,-242.10438069,0.00013551,2]
[329544149,1718425290695,-667.03140349,0.00013551,2]
[329544150,1718425290724,-365.36443535,0.00013551,2]
[329544151,1718425290769,-300.0,0.00013552,2]
[329544152,1718425290811,-150.0,0.00013552,2]
[329544153,1718425290886,-119.38971829,0.00013553,2]
[329544154,1718425330001,-300.0,0.00013552,2]
[329544155,1718425330034,-9700.0,0.00013553,2]
[329544156,1718425330699,-10000.0,0.00013553,2]
[329544157,1718425331579,-4080.61028171,0.00013553,2]
[329544158,1718425331619,-1000.25333624,0.00013555,2]
[329544159,1718425331660,-2337.46,0.00013557,2]
[329544160,1718425331691,-250.0,0.00013557,2]
[329544161,1718425331727,-253.45455834,0.00013559,2]
[329544162,1718425331767,-499.99,0.00013559,2]
[329544163,1718425331805,-1000.0,0.00013598,2]
[329544164,1718425331861,-578.23182371,0.00013598,2]
[329544165,1718425332460,-1921.76817629,0.00013598,2]
[329544166,1718425332494,-172.23474075,0.00013599,2]
[329544167,1718425332538,-3271.17585529,0.00013686,2]
[329544168,1718425332584,-1000.0,0.00013695,2]
[329544169,1718425332615,-221.33050222,0.00013695,2]
[329544170,1718425332657,-3413.49072545,0.00013696,2]
[329544171,1718425333599,-469.32337455,0.00013696,2]
[329544172,1718425333635,-164.97012723,0.00013696,2]
[329544173,1718425333683,-2384.03389456,0.00013696,2]
[329544174,1718425333720,-2379.15757782,0.00013696,2]
[329544175,1718425333768,-155.25006552,0.00013696,2]
[329544176,1718425333798,-264.7127732,0.00013696,2]
[329544177,1718425333837,-203.41389043,0.00013696,2]
[329544178,1718425333892,-206.34134894,0.00013696,2]
[329544179,1718425333953,-155.0,0.00013696,2]
[329544180,1718425333990,-155.85297445,0.00013696,2]
[329544181,1718425334033,-299.30508647,0.00013696,2]
[329544182,1718425334068,-155.78755022,0.00013696,2]
[329544183,1718425334108,-225.6599661,0.00013696,2]
[329544184,1718425334192,-266.03294333,0.00013696,2]
[329544185,1718425334224,-155.64540202,0.00013696,2]
[329544186,1718425334255,-2359.51302516,0.00013696,2]
[329544187,1718425335426,-5758.60390783,0.00013696,2]
[329544188,1718425335463,-508.47342223,0.00013696,2]
[329544189,1718425335691,-3732.92266994,0.00013696,2]
[329544190,1718425649152,-595.4796617,0.00013597,2]
[329544191,1718425712834,150.41,0.00024329,30]
[329544192,1718425771145,-300.66214899,0.00013595,2]
[329544193,1718425810762,320.4,0.00010196,2]
[329544194,1718425810798,322.58844065,0.00010196,2]
[329544195,1718425810837,179.89658788,0.00010196,2]
[329544207,1718425834850,-162.62,0.00013337,2]
[329544208,1718425834863,-1000.0,0.00013594,2]
[329544209,1718425834881,-300.0,0.00013595,2]
[329544210,1718425834904,-13129.09322298,0.00013596,2]
[329544211,1718425834920,-401.9334,0.00013598,2]
[329544212,1718425834932,-779.3108,0.00013598,2]
[329544213,1718425834943,-2500.0,0.00013598,2]
[329544214,1718425834965,-172.23474074,0.00013599,2]
[329544215,1718425834979,-326.35336821,0.00013599,2]
[329544216,1718425834992,-3812.03737915,0.00013696,2]
[329544217,1718425835010,-2823.25950554,0.00013696,2]
[329544218,1718425835026,-155.0,0.00013696,2]
[329544219,1718425835053,-155.56200336,0.00013696,2]
[329544220,1718425835068,-201.37217946,0.00013696,2]
[329544221,1718425835113,-157.62006616,0.00013696,2]
[329544222,1718425835134,-155.0,0.00013696,2]
[329544223,1718425835153,-434.42218861,0.00013696,2]
[329544224,1718425835188,-465.69522713,0.00013696,2]
[329544225,1718425835201,-1416.38490909,0.00013697,2]
[329544226,1718425835214,-1937.09461398,0.00013698,2]
[329544227,1718425835274,-3225.18523691,0.00013698,2]
[329544228,1718425835311,-724.65,0.00013698,2]
[329544247,1718425839661,-13598.50999999,0.00013698,2]
[329544248,1718425839767,-527.3426415,0.00013698,2]
[329544249,1718425840060,-665109.8274628,0.00013698,2]
[329544250,1718425840116,-363.84,0.00013699,2]
[329544251,1718425840134,-19781.93512778,0.00013699,2]
[329544252,1718425840147,-48073.406,0.000139,2]
[329544253,1718425840165,-173.97,0.00013977,2]
[329544254,1718425840179,-2501.8476981,0.00014,2]
[329544255,1718425840193,-158.9,0.00014117,2]
[329544256,1718425840217,-158.9,0.00014301,2]
[329544257,1718425840233,-158.9,0.00014485,2]
[329544258,1718425840256,-158.9,0.00014669,2]
[329544259,1718425840280,-453.49,0.00014773,2]
[329544260,1718425840312,-158.9,0.00014853,2]
[329544261,1718425840343,-268.90821307,0.00015,2]
[329544262,1718425840382,-8186.68844923,0.00015,2]
[329544263,1718425840417,-621.32112059,0.00015,2]
[329544264,1718425840436,-400.0,0.00015897,2]
[329544265,1718425840457,-200.0,0.00016486,2]
[329544266,1718425840471,-150.94,0.00016618,2]
[329544267,1718425840482,-9305.59,0.00016628,2]
[329544268,1718425840531,-2934.61,0.00016635,2]
[329544269,1718425840551,-340.74,0.00016691,2]
[329544270,1718425840573,-3676.16,0.00016737,2]
[329544271,1718425840590,-1795.69,0.00016766,2]
[329544272,1718425840613,-250.0,0.00016851,2]
[329544273,1718425840627,-385.12,0.00016907,2]
[329544274,1718425840649,-250.0,0.00016911,2]
[329544275,1718425840679,-453.49,0.00017037,2]
[329544276,1718425840690,-490.04,0.00017041,2]
[329544277,1718425840724,-172.23474074,0.00017117,2]
[329544278,1718425840740,-400.0,0.00017884,2]
[329544279,1718425840755,-192.63,0.00018455,2]
[329544280,1718425840780,-411.60800639,0.00019,2]
[329544281,1718425840793,-453.49,0.00019301,2]
[329544282,1718425840810,-1795.69,0.00019506,2]
[329544283,1718425840823,-400.0,0.00019871,2]
[329544284,1718425840840,-261.54554031,0.0002,2]